bitfinex/quotes_ETHUSD_20220119
["timestamp","ask_amount","ask_price","bid_price","bid_amount"]
[1642612572683,1.43218049,3137.8,3137.3,0.79688]
[1642612573081,1.43218049,3137.8,3137.4,0.79688]
[1642612573280,0.1274,3137.7,3137.4,0.79688]
[1642612573680,0.00341054,3137.6,3137.4,0.79688]
[1642612574083,0.00284211,3137.5,3137.4,0.79688]
[1642612576121,0.00284211,3137.5,3137.4,1.09688]
[1642612576322,8.4113,3137.9,3137.5,0.02340548]
[1642612576524,8.4113,3137.9,3137.5,0.3]
[1642612576722,0.00113685,3137.7,3137.5,0.3]
[1642612578327,0.001,3137.5,3137.4,1.18697218]
[1642612578775,0.001,3137.5,3137.4,0.79688]
[1642612583823,1.11674398,3137.6,3137.4,0.79688]
[1642612584024,0.00113685,3137.7,3137.4,0.79688]
[1642612584226,0.00113685,3137.7,3137.5,0.0914805]
[1642612584425,0.1274,3138.5,3137.6,5.8]
[1642612584426,15.9926,3138.5,3137.6,5.8]
[1642612584628,15.9926,3138.5,3137.9,0.3]
[1642612584825,0.00397896,3138.4,3137.9,0.3]
[1642612585026,0.00397896,3138.4,3137.8,3.98332]
[1642612585329,0.00341054,3138.3,3137.8,3.98332]
[1642612585529,0.00341054,3138.3,3138.0,1.59332]
[1642612585726,0.00284212,3138.2,3138.0,1.59332]
[1642612586129,0.00227369,3138.1,3138.0,2.38999]
[1642612586402,0.00227369,3138.1,3137.5,3.2447]
[1642612586589,0.1274,3138.0,3137.7,0.79689]
[1642612586787,0.00170527,3138.0,3137.7,0.79689]
[1642612586986,0.1274,3138.4,3137.7,0.79689]
[1642612586987,0.00113685,3137.9,3137.7,0.79689]
[1642612587193,0.00113685,3137.9,3137.7,1.5937]
[1642612587387,0.00341054,3138.3,3137.7,1.5937]
[1642612587587,0.00341054,3138.3,3137.8,1.59351]
[1642612587792,0.00284212,3138.2,3137.8,1.59351]
[1642612588193,0.00227369,3138.1,3137.8,1.59351]
[1642612588703,0.1274,3138.4,3137.8,1.59351]
[1642612588704,0.00170527,3138.0,3137.8,1.59351]
[1642612589100,0.00113685,3137.9,3137.8,1.59351]
[1642612589300,0.00113685,3137.9,3137.7,1.5937]
[1642612589704,0.00113685,3137.9,3137.7,1.8937]
[1642612591833,0.00113685,3137.9,3137.7,1.5937]
[1642612592635,0.00113685,3137.9,3137.7,1.8937]
[1642612594382,15.9926,3138.5,3137.7,6.21021981]
[1642612594587,15.9926,3138.5,3138.0,1.59317]
[1642612594786,0.00284211,3138.4,3138.1,0.04596039]
[1642612595083,15.9926,3138.5,3138.3,0.03357821]
[1642612595483,8.2824,3138.5,3138.3,1.44996354]
[1642612595682,8.2824,3138.5,3138.3,1.4705157]
[1642612595886,8.2824,3138.5,3138.3,1.44996354]
[1642612596382,8.2824,3138.5,3138.4,4.13454857]
[1642612596784,4.5448,3138.8,3138.4,4.13454857]
[1642612597184,0.00170527,3138.7,3138.4,4.13454857]
[1642612597634,0.00113685,3138.6,3138.4,4.13454857]
[1642612598239,0.00113685,3138.6,3138.4,7.63454857]
[1642612598542,0.00113685,3138.6,3138.4,5.72772857]
[1642612599541,0.00113685,3138.6,3138.4,2.92772857]
[1642612600645,0.00113685,3138.6,3138.4,1.59318]
[1642612601988,1.20712442,3138.6,3138.4,1.59318]
[1642612602388,0.00113685,3138.6,3138.4,1.59318]
[1642612603088,0.00113685,3138.6,3138.4,1.89318]
[1642612603287,15.9199,3139.1,3138.4,1.89318]
[1642612603288,15.9199,3139.1,3138.4,7.69318]
[1642612603489,15.7925,3139.1,3138.5,0.79646]
[1642612603692,0.0022737,3139.0,3138.5,1.59292]
[1642612603890,0.0022737,3139.0,3138.6,2.38934]
[1642612604089,0.00170527,3138.9,3138.7,1.50786468]
[1642612604488,0.00113685,3138.8,3138.7,1.50786468]
[1642612604688,0.1274,3139.5,3138.8,4.05]
[1642612604889,0.1274,3139.5,3139.1,0.79646]
[1642612605135,0.00341054,3139.4,3139.1,0.79646]
[1642612605533,0.00284212,3139.3,3139.1,0.79646]
[1642612605936,0.1274,3139.7,3139.1,0.79646]
[1642612605937,0.00227369,3139.2,3139.1,0.79646]
[1642612606936,0.00227369,3139.2,3138.9,1.59291]
[1642612607139,0.00227369,3139.2,3138.4,0.79674]
[1642612607140,0.15745,3139.0,3138.4,0.79674]
[1642612607339,0.01203976,3138.9,3138.4,0.79674]
[1642612607537,0.12910527,3139.1,3138.5,0.00170527]
[1642612607538,0.1274,3138.8,3138.5,0.00170527]
[1642612607737,0.1274,3139.0,3138.5,0.00170527]
[1642612607937,0.01154257,3138.8,3138.5,0.00170527]
[1642612608140,1.39008331,3138.8,3138.5,0.00170527]
[1642612608438,1.37854074,3138.8,3138.5,0.00170527]
[1642612611693,1.37854074,3138.8,3137.5,1.2465]
[1642612611694,3.46227553,3138.7,3138.4,0.0022737]
[1642612611893,0.1274,3138.6,3138.4,0.0022737]
[1642612612092,0.15187258,3138.6,3137.6,0.00682108]
[1642612612292,0.79687,3138.4,3137.7,1.59355]
[1642612612733,1.31277317,3138.0,3137.8,0.00568424]
[1642612612933,1.31277317,3138.0,3137.8,0.80251424]
[1642612613336,0.1274,3138.6,3137.9,2.45511581]
[1642612613534,16.1775,3138.7,3137.9,2.75511581]
[1642612613734,16.1775,3138.7,3138.0,0.00454739]
[1642612613937,16.1775,3138.7,3138.0,2.39465739]
[1642612614338,16.1775,3138.7,3138.1,0.00397897]
[1642612614339,1.45430379,3138.6,3138.1,0.00397897]
[1642612614541,4.9367716,3138.6,3138.1,0.00397897]
[1642612614740,0.1274,3138.5,3137.9,0.00511581]
[1642612614939,0.1274,3138.5,3137.4,0.00795793]
[1642612615138,0.28485,3138.5,3137.4,0.00795793]
[1642612615341,1.04345,3138.5,3137.4,0.00795793]
[1642612615541,1.60150683,3138.4,3137.4,0.00795793]
[1642612615741,0.1274,3138.3,3137.1,0.0096632]
[1642612615941,0.79708,3138.0,3137.1,0.0096632]
[1642612616386,4.4285,3137.9,3137.1,0.0096632]
[1642612616582,4.58595,3137.9,3137.0,0.80726162]
[1642612616793,1.12925142,3137.3,3137.1,0.0096632]
[1642612617781,1.12925142,3137.3,3136.8,0.01136847]
[1642612618588,1.12925142,3137.3,3136.8,0.80841847]
[1642612618789,1.12925142,3137.3,3136.9,0.79702]
[1642612618988,1.12925142,3137.3,3136.9,0.80782005]
[1642612619193,1.12925142,3137.3,3137.0,0.01023162]
[1642612619787,8.2334,3137.7,3137.1,1.594]
[1642612620035,0.1274,3137.6,3137.0,0.01023162]
[1642612620234,0.1274,3137.6,3137.2,0.00909478]
[1642612620435,0.1274,3137.6,3136.8,0.01136847]
[1642612620837,1.33892467,3137.0,3136.8,0.01136847]
[1642612621640,1.33892467,3137.0,3136.4,0.01364216]
[1642612622040,1.33892467,3137.0,3136.5,2.71268661]
[1642612622041,0.79726,3136.9,3136.5,2.71268661]
[1642612622436,0.79726,3136.9,3136.6,0.01250532]
[1642612622635,8.60766,3136.9,3136.6,0.01250532]
[1642612622835,8.60766,3136.9,3136.3,1.59444]
[1642612622836,12.05978957,3136.9,3136.3,0.79722]
[1642612623035,12.05978957,3136.9,3136.4,0.01364216]
[1642612623036,8.60766,3136.9,3136.4,0.01364216]
[1642612623242,0.1275,3136.8,3136.4,0.01364216]
[1642612623435,4.0258336,3136.8,3136.2,0.01477901]
[1642612623636,0.79738,3136.6,3135.9,0.01648428]
[1642612623884,1.33309347,3136.4,3136.3,0.54265245]
[1642612624285,1.33309347,3136.4,3135.6,0.90442075]
[1642612624286,4.15,3136.3,3135.6,0.90442075]
[1642612624483,0.09274736,3136.2,3135.6,0.90442075]
[1642612624686,0.09274736,3136.2,3135.7,0.00341054]
[1642612624687,0.1275,3136.1,3135.7,0.00341054]
[1642612624884,1.2478,3136.1,3135.7,0.00341054]
[1642612625583,1.14347552,3135.4,3135.2,0.00625266]
[1642612625784,1.14347552,3135.4,3135.3,2.71354921]
[1642612626083,1.2478,3136.1,3135.4,1.50795663]
[1642612626084,5.57129348,3136.0,3135.4,1.50795663]
[1642612626285,0.1275,3135.9,3135.4,1.50795663]
[1642612626483,0.1275,3135.9,3135.5,0.00454739]
[1642612626686,6.52635128,3136.0,3135.5,0.00454739]
[1642612626687,1.88005,3136.0,3135.5,0.00454739]
[1642612626883,5.42678797,3136.0,3135.5,0.00454739]
[1642612627083,1.1162845,3135.9,3135.5,0.00454739]
[1642612627287,0.1275,3135.8,3135.5,0.00454739]
[1642612627530,0.92503,3135.8,3135.5,0.00454739]
[1642612627731,4.29888884,3135.8,3135.5,0.00454739]
[1642612627931,0.15745,3135.6,3135.5,0.00454739]
[1642612628136,0.28495,3135.6,3135.5,0.00454739]
[1642612628441,0.28495,3135.6,3134.5,0.90442075]
[1642612628442,5.5,3135.5,3134.5,0.90442075]
[1642612628640,0.01221767,3135.2,3134.5,0.90442075]
[1642612628839,0.00402058,3135.0,3134.6,0.00511581]
[1642612629036,0.1275,3134.9,3134.6,0.00511581]
[1642612629236,0.1275,3134.9,3134.3,1.44534285]
[1642612629438,7.76285,3135.1,3134.7,1.22405968]
[1642612629439,7.7329,3135.1,3134.7,1.22405968]
[1642612629637,7.6054,3135.1,3134.7,1.22405968]
[1642612629839,7.6054,3135.1,3134.8,0.00397896]
[1642612630242,7.6054,3135.1,3134.9,1.49711526]
[1642612630440,4.5417,3135.3,3134.9,1.49711526]
[1642612630640,4.5417,3135.3,3135.2,1.17540293]
[1642612631040,4.5417,3135.3,3135.2,1.1771082]
[1642612631288,0.25019736,3136.2,3135.2,1.1771082]
[1642612631289,0.1275,3136.1,3135.2,1.1771082]
[1642612631488,0.09274736,3136.2,3135.4,0.06747777]
[1642612631688,0.00284212,3136.0,3135.3,0.00113684]
[1642612631889,0.00341054,3136.1,3135.3,0.00113684]
[1642612632093,0.0022737,3135.9,3135.3,0.00113684]
[1642612632291,1.49895352,3136.0,3135.3,0.00113684]
[1642612632504,0.00170527,3135.8,3135.3,0.79855684]
[1642612632692,0.0022737,3135.9,3135.3,0.79855684]
[1642612632991,0.00170527,3135.8,3135.4,1.44948755]
[1642612633193,0.00170527,3135.8,3135.3,0.79855684]
[1642612633391,0.00113685,3135.7,3135.3,0.79855684]
[1642612633593,0.00113685,3135.7,3135.3,0.00113684]
[1642612633791,0.92838054,3136.1,3135.3,1.09860684]
[1642612633993,0.13091054,3136.1,3135.3,0.79747]
[1642612634195,0.00284212,3136.0,3135.3,0.79747]
[1642612634392,0.00284212,3136.0,3135.6,1.40813881]
[1642612634593,0.0022737,3135.9,3135.6,1.40813881]
[1642612634793,0.0022737,3135.9,3135.5,1.34279541]
[1642612635029,0.00170527,3135.8,3135.4,1.59473]
[1642612635228,0.00170527,3135.8,3135.2,0.00170527]
[1642612635429,0.00113685,3135.7,3135.2,0.00170527]
[1642612635631,1.4156865,3135.6,3135.2,0.00170527]
[1642612635833,2.2603865,3135.6,3135.2,0.00170527]
[1642612636034,4.467,3135.5,3134.7,0.00454738]
[1642612636235,0.79767,3135.3,3134.7,0.00454738]
[1642612636437,7.8541,3135.4,3134.7,0.00454738]
[1642612636636,7.8541,3135.4,3134.5,1.70807964]
[1642612637546,0.79767,3135.3,3134.5,0.91044964]
[1642612637738,0.1275,3135.3,3134.5,0.25330423]
[1642612637940,7.8541,3135.4,3134.5,0.25330423]
[1642612638340,7.8541,3135.4,3134.9,1.25959672]
[1642612638540,1.28296292,3135.6,3135.0,0.03662865]
[1642612638784,0.1275,3136.0,3135.3,1.18565453]
[1642612638985,0.1275,3136.0,3135.3,1.98307453]
[1642612639185,16.43191054,3136.1,3135.4,3.22880964]
[1642612639186,0.0022737,3135.9,3135.4,3.22880964]
[1642612639386,0.0022737,3135.9,3135.5,0.53567737]
[1642612639587,3.89275,3137.7,3135.5,1.759]
[1642612639588,0.00170527,3135.8,3135.5,1.759]
[1642612639785,0.00170527,3135.8,3135.6,1.43047124]
[1642612639985,0.00113685,3135.7,3135.6,1.43047124]
[1642612640388,0.00113685,3135.7,3135.6,3.45]
[1642612640590,0.00113685,3135.7,3135.5,3.52123]
[1642612640988,0.00113685,3135.7,3135.5,1.92688]
[1642612641988,0.00113685,3135.7,3135.5,0.79718]
[1642612643057,1.4374457,3135.7,3135.4,1.89435]
[1642612643658,1.4374457,3135.7,3135.4,1.59435]
[1642612644658,1.4374457,3135.7,3135.1,3.19173369]
[1642612644860,1.4374457,3135.7,3135.1,0.00227369]
[1642612645059,1.4374457,3135.7,3135.2,0.00170527]
[1642612645060,0.1275,3135.6,3135.2,0.00170527]
[1642612645259,0.1275,3135.6,3135.0,0.00284211]
[1642612645464,0.1275,3135.6,3134.9,0.00341054]
[1642612645465,1.27144533,3135.2,3134.9,0.00341054]
[1642612645860,1.27144533,3135.2,3134.7,0.00454738]
[1642612646062,1.27144533,3135.2,3134.9,0.79753]
[1642612646485,1.27144533,3135.2,3135.0,0.00284211]
[1642612646688,1.27144533,3135.2,3134.0,0.1275]
[1642612646689,5.15,3135.0,3134.0,0.1275]
[1642612646887,0.15970789,3134.9,3134.0,0.1275]
[1642612647087,0.1275,3134.9,3134.1,0.00511581]
[1642612647285,2.37574533,3135.2,3134.1,0.00511581]
[1642612647286,1.39894533,3135.2,3134.1,0.00511581]
[1642612647488,1.27144533,3135.2,3134.1,0.00511581]
[1642612647685,1.27144533,3135.2,3133.8,0.7978]
[1642612647686,0.1275,3135.3,3134.4,1.3485441]
[1642612647887,0.1275,3135.3,3134.4,1.6485441]
[1642612648091,0.00113685,3135.2,3134.6,1.16178668]
[1642612648387,8.6848,3135.6,3134.7,0.02391698]
[1642612648388,0.00227369,3135.4,3134.7,0.02391698]
[1642612648588,0.00227369,3135.4,3134.7,0.00170527]
[1642612648788,0.00170527,3135.3,3135.1,1.50143498]
[1642612649088,4.4595,3135.5,3135.2,1.11724193]
[1642612649288,4.4595,3135.5,3135.2,1.91466193]
[1642612649489,0.00227369,3135.4,3135.2,1.91466193]
[1642612649890,0.00170527,3135.3,3135.2,1.91466193]
[1642612650331,0.00170527,3135.3,3135.2,2.21466193]
[1642612650533,16.3379,3136.2,3135.3,5.85208041]
[1642612650737,16.3379,3136.2,3135.4,0.79734]
[1642612650931,0.00341054,3135.9,3135.4,0.79734]
[1642612651333,0.00284211,3135.8,3135.5,1.26237416]
[1642612651533,0.00284211,3135.8,3135.7,1.27945305]
[1642612651734,0.00284211,3135.8,3135.4,0.79734]
[1642612651735,0.1275,3136.1,3135.4,0.79734]
[1642612651934,0.92493,3136.1,3135.3,0.00208041]
[1642612652133,0.00227369,3135.7,3135.4,0.7974]
[1642612652536,0.12920527,3135.6,3135.3,0.00208041]
[1642612652734,1.47420249,3135.5,3135.3,0.00208041]
[1642612652934,1.47533933,3135.5,3135.3,0.00208041]
[1642612653636,0.00113684,3135.5,3135.3,0.00208041]
[1642612656419,1.36143013,3135.5,3135.3,0.00208041]
[1642612657218,0.00113684,3135.5,3135.3,0.00208041]
[1642612659039,1.42381354,3135.4,3135.3,0.00208041]
[1642612660340,0.00113684,3135.5,3135.3,0.00208041]
[1642612661880,1.1787621,3135.4,3135.3,0.00208041]
[1642612665047,5.3287621,3135.4,3135.3,0.00208041]
[1642612665236,5.4562621,3135.4,3135.3,0.00208041]
[1642612666239,5.6137121,3135.4,3135.3,0.00208041]
[1642612666443,1.4637121,3135.4,3135.3,0.00208041]
[1642612666639,1.3062621,3135.4,3135.3,0.00208041]
[1642612666938,1.1787621,3135.4,3135.3,0.00208041]
[1642612667740,0.00113684,3135.5,3135.3,0.00208041]
[1642612669184,0.00113684,3135.5,3135.4,1.18910207]
[1642612671391,0.00113684,3135.5,3135.3,0.00208041]
[1642612671793,0.00113684,3135.5,3135.4,0.54285579]
[1642612672635,0.00113684,3135.5,3135.4,1.81072068]
[1642612673334,0.00113684,3135.5,3135.4,0.54285579]
[1642612674943,2.55113684,3135.5,3135.4,0.54285579]
[1642612675545,2.67863684,3135.5,3135.4,0.54285579]
[1642612675745,5.8,3135.4,3135.3,0.00208041]
[1642612675946,5.9275,3135.4,3135.3,0.00208041]
[1642612676384,6.7252,3135.4,3135.3,0.00208041]
[1642612677584,6.88265,3135.4,3135.3,0.00208041]
[1642612680432,6.75515,3135.4,3135.3,0.00208041]
[1642612680640,5.8,3135.2,3134.1,0.9047567]
[1642612680840,5.8,3135.2,3133.1,11.19689863]
[1642612680841,0.79796,3134.7,3133.1,11.19689863]
[1642612681038,0.459,3134.6,3133.1,7.32]
[1642612681239,0.459,3134.6,3133.1,0.01255943]
[1642612681240,0.28495,3134.5,3133.1,0.01255943]
[1642612681438,0.1275,3134.5,3133.1,0.01255943]
[1642612681637,12.487,3134.7,3133.9,1.53277964]
[1642612681839,0.1275,3135.1,3134.0,2.39313]
[1642612682040,11.4658,3135.2,3134.0,2.40051951]
[1642612682041,19.6,3135.2,3134.0,2.40051951]
[1642612682237,19.6,3135.2,3134.0,2.70051951]
[1642612682438,19.6,3135.2,3134.0,3.70051951]
[1642612682638,24.2143,3135.2,3134.0,2.70051951]
[1642612682839,24.2143,3135.2,3134.9,1.54561553]
[1642612683041,24.37175,3135.2,3134.2,1.1585]
[1642612683240,24.37175,3135.2,3135.0,0.00170527]
[1642612683439,24.37175,3135.2,3134.2,1.1585]
[1642612683440,6.59772,3135.1,3134.3,0.80337424]
[1642612683889,5.8,3135.1,3134.4,0.00511581]
[1642612684091,7.00165598,3135.1,3134.4,0.00511581]
[1642612684693,7.00165598,3135.1,3134.8,1.41385761]
[1642612685094,5.8,3135.1,3134.9,0.0022737]
[1642612685695,6.40517,3135.0,3134.9,0.0022737]
[1642612685893,6.37522,3135.0,3134.9,0.0022737]
[1642612686094,6.37522,3135.0,3134.3,0.00568424]
[1642612686293,20.4386,3135.2,3134.5,1.2743905]
[1642612686495,20.3111,3135.2,3134.5,1.2743905]
[1642612686693,20.3111,3135.2,3134.9,1.22923687]
[1642612687094,20.3111,3135.2,3135.0,0.00170527]
[1642612688032,4.29769,3135.1,3135.0,0.00170527]
[1642612688635,4.45514,3135.1,3134.4,0.00511581]
[1642612688834,4.29769,3135.1,3134.4,0.00511581]
[1642612689234,4.29769,3135.1,3134.4,1.54456091]
[1642612689435,4.29769,3135.1,3134.8,1.4281327]
[1642612689636,4.29769,3135.1,3134.5,0.00454739]
[1642612689839,4.29769,3135.1,3134.9,0.0022737]
[1642612690040,4.29769,3135.1,3134.6,0.79767]
[1642612690237,4.29769,3135.1,3134.7,0.00341054]
[1642612690437,1.35246486,3135.0,3134.7,0.00341054]
[1642612690639,1.35246486,3135.0,3133.4,4.90254508]
[1642612690640,0.15745,3134.8,3133.9,1.10011149]
[1642612690838,0.1275,3134.7,3133.9,1.10011149]
[1642612691495,0.1275,3134.7,3134.1,1.35822363]
[1642612691696,0.00113684,3134.9,3134.2,0.81027504]
[1642612691894,0.00113684,3134.9,3134.3,0.79762]
[1642612692094,0.00113684,3134.9,3134.3,0.7998937]
[1642612692293,0.00113684,3134.9,3134.4,1.59695527]
[1642612692702,0.00113684,3134.9,3134.5,0.00113685]
[1642612693099,1.50903996,3134.9,3134.5,0.00113685]
[1642612693300,0.1275,3134.8,3134.5,0.00113685]
[1642612693500,1.50903996,3134.9,3134.2,0.79777]
[1642612693698,0.15745,3134.8,3134.3,0.0022737]
[1642612693899,0.1275,3134.8,3134.3,0.0022737]
[1642612694300,0.1275,3134.8,3134.3,2.6952837]
[1642612694699,0.00113684,3134.9,3134.4,0.00170527]
[1642612695143,0.15745,3134.8,3134.4,0.00170527]
[1642612695350,0.1275,3134.8,3134.4,0.00170527]
[1642612695543,0.00113684,3134.9,3134.3,1.0999737]
[1642612695743,0.00113684,3134.9,3134.3,1.0977]
[1642612695942,0.00113684,3134.9,3134.4,0.00170527]
[1642612696345,0.00113684,3134.9,3134.4,0.79942527]
[1642612696546,0.00113684,3134.9,3134.8,5.7628277]
[1642612697148,0.00113684,3134.9,3134.8,1.33612368]
[1642612697546,0.00113684,3134.9,3134.8,0.0128277]
[1642612697747,0.00113684,3134.9,3134.6,0.3]
[1642612698808,0.00113684,3134.9,3134.6,1.89508]
[1642612699010,0.00113684,3134.9,3134.6,2.69267]
[1642612700417,0.00113684,3134.9,3134.5,0.00113685]
[1642612700812,0.00113684,3134.9,3134.2,0.00284212]
[1642612701212,1.15397767,3134.5,3134.2,0.00284212]
[1642612701618,0.00113684,3134.9,3134.1,0.00341054]
[1642612701818,0.00113684,3134.9,3134.0,0.00397897]
[1642612702221,0.00113684,3134.9,3134.1,4.30998558]
[1642612702418,0.00113684,3134.9,3134.3,0.79767]
[1642612702648,0.00113684,3134.9,3134.4,1.23736623]
[1642612702850,0.00113684,3134.9,3134.4,1.2390715]
[1642612703051,0.00113684,3134.9,3134.5,0.00113685]
[1642612704355,0.00113684,3134.9,3134.6,0.79756]
[1642612704554,0.00113684,3134.9,3134.6,1.39756]
[1642612705453,0.00113684,3134.9,3134.6,2.19507]
[1642612705857,0.00113684,3134.9,3134.7,3.24075223]
[1642612706056,0.00113684,3134.9,3134.8,6.8]
[1642612706303,4.6238,3135.8,3134.8,6.8]
[1642612706304,4.6238,3135.8,3134.9,5.8]
[1642612706498,4.6238,3135.8,3135.1,0.79735]
[1642612706702,0.00454739,3135.7,3135.2,3.22192374]
[1642612706902,0.00454739,3135.7,3135.6,2.67687165]
[1642612707102,4.6238,3135.8,3135.6,2.67687165]
[1642612707706,15.4537,3135.9,3135.7,0.3]
[1642612708001,0.00511581,3135.8,3135.7,0.3]
[1642612708806,0.00511581,3135.8,3135.7,1.09732]
[1642612709002,7.77731176,3135.9,3135.7,1.09732]
[1642612710142,7.6396,3136.2,3135.7,1.09732]
[1642612710341,7.5121,3136.2,3135.7,1.09732]
[1642612710546,0.00170527,3136.1,3135.7,1.09732]
[1642612710744,0.00170527,3136.1,3135.8,0.79732]
[1642612710949,0.00113685,3136.0,3135.8,0.79732]
[1642612711147,0.00113685,3136.0,3135.9,0.3]
[1642612711346,0.00113685,3136.0,3135.8,0.79732]
[1642612711544,0.00113685,3136.0,3135.9,0.3]
[1642612711745,0.00113685,3136.0,3135.8,0.79732]
[1642612711944,0.00113685,3136.0,3135.9,0.3]
[1642612713652,7.5121,3136.2,3136.0,0.02386315]
[1642612714329,0.1275,3136.4,3136.0,3.20591711]
[1642612714522,7.9777,3136.8,3136.4,1.31883882]
[1642612714922,7.9777,3136.8,3136.4,1.61883882]
[1642612715927,7.9777,3136.8,3136.3,0.79717]
[1642612716132,7.9777,3136.8,3136.3,1.09717]
[1642612716429,7.9777,3136.8,3136.4,0.79719]
[1642612718544,0.1275,3137.1,3136.4,0.79719]
[1642612718750,0.79716,3137.1,3136.5,0.02974253]
[1642612718948,0.00568424,3137.0,3136.4,1.09719]
[1642612719247,0.92466,3137.1,3136.4,1.09719]
[1642612719248,0.00511581,3136.9,3136.4,1.09719]
[1642612719647,0.00454739,3136.8,3136.6,1.39855987]
[1642612720050,0.1275,3137.8,3136.6,1.39855987]
[1642612720051,0.00397897,3136.7,3136.6,2.43736084]
[1642612720249,0.00397897,3136.7,3136.6,2.39855987]
[1642612720451,7.9012,3137.8,3136.7,5.8]
[1642612720651,7.9012,3137.8,3136.9,0.79694]
[1642612721052,11.0789878,3137.8,3137.0,0.00397896]
[1642612721299,0.1274,3137.7,3137.0,0.00397896]
[1642612721497,0.15745,3137.6,3137.0,0.00397896]
[1642612721695,0.1274,3137.5,3136.6,0.00625266]
[1642612721894,1.51991182,3136.9,3136.6,0.00625266]
[1642612722096,1.51991182,3136.9,3136.3,0.00795793]
[1642612722295,0.1275,3136.8,3136.3,0.00795793]
[1642612722493,0.1275,3136.8,3136.0,3.29496315]
[1642612722494,1.64741182,3136.9,3136.1,0.00909478]
[1642612722695,9.30351182,3136.9,3136.1,0.00909478]
[1642612722894,12.71326991,3136.9,3136.1,0.00909478]
[1642612723097,0.79737,3136.2,3136.1,0.00909478]
[1642612724897,0.79731,3136.6,3136.1,0.00909478]
[1642612725150,0.79731,3136.6,3136.1,0.30909478]
[1642612725351,0.79731,3136.6,3136.1,0.00909478]
[1642612725551,0.79731,3136.6,3136.2,0.00852635]
[1642612725752,1.18904319,3136.5,3136.1,1.60355478]
[1642612725950,1.18904319,3136.5,3136.1,1.90355478]
[1642612726151,1.18904319,3136.5,3136.2,0.00852635]
[1642612726351,0.79731,3136.6,3136.2,0.00852635]
[1642612727651,2.04718074,3136.6,3136.2,0.00852635]
[1642612728891,1.94718074,3136.6,3136.2,0.00852635]
[1642612730497,5.27325778,3136.6,3136.2,0.00852635]
[1642612730692,1.59487,3136.4,3136.2,0.00852635]
[1642612730896,3.1775,3136.3,3136.1,0.00909478]
[1642612731097,5.69620954,3136.2,3136.1,0.00909478]
[1642612731502,5.80365954,3136.2,3136.1,0.00909478]
[1642612731895,5.8,3136.1,3136.0,0.04886315]
[1642612732097,5.8,3136.0,3134.5,1.24112943]
[1642612732299,5.8,3136.0,3134.5,1.2284]
[1642612732300,4.86491292,3135.9,3134.5,1.2284]
[1642612732583,4.86491292,3135.9,3134.6,0.00852635]
[1642612732584,5.86491292,3135.9,3134.6,0.00852635]
[1642612732779,8.2494,3135.8,3134.6,0.00852635]
[1642612732983,4.02786866,3135.7,3134.6,0.00852635]
[1642612733180,1.32113108,3135.2,3134.6,0.00852635]
[1642612733380,0.7977,3135.1,3134.6,0.00852635]
[1642612733580,0.7977,3135.1,3134.6,0.80620635]
[1642612733781,0.7977,3135.1,3134.6,0.79768]
[1642612733981,0.7977,3135.1,3134.7,0.00795792]
[1642612734384,3.53319033,3135.5,3134.7,0.00795792]
[1642612734583,1.27622212,3135.4,3134.7,0.00795792]
[1642612734781,2.07382212,3135.4,3134.7,0.00795792]
[1642612734983,0.7976,3135.4,3134.7,1.60311792]
[1642612735181,1.72273,3135.6,3134.7,1.60311792]
[1642612735182,0.1275,3135.6,3134.7,1.60311792]
[1642612735382,0.1275,3135.6,3135.0,0.79753]
[1642612735582,9.4205,3135.7,3135.1,0.3]
[1642612735583,8.235,3135.7,3135.1,0.3]
[1642612735783,5.35002,3135.7,3135.1,0.30568423]
[1642612735983,5.35002,3135.7,3135.2,0.00511581]
[1642612736392,8.75661781,3135.7,3135.2,0.80259581]
[1642612736597,8.75661781,3135.7,3135.2,0.00511581]
[1642612736796,8.75661781,3135.7,3135.3,0.00454738]
[1642612736999,8.69594555,3135.7,3135.2,0.00511581]
[1642612737197,5.47752,3135.7,3135.2,0.00511581]
[1642612737997,5.58497,3135.7,3135.2,0.00511581]
[1642612738597,5.45747,3135.7,3135.2,0.00511581]
[1642612738797,5.45747,3135.7,3135.0,0.00625265]
[1642612738997,5.45747,3135.7,3135.1,1.09756]
[1642612739399,5.45747,3135.7,3135.2,0.00511581]
[1642612740346,4.5525,3135.7,3135.2,0.00511581]
[1642612741247,0.79756,3135.6,3135.2,0.00511581]
[1642612742749,4.5525,3135.7,3135.2,0.00511581]
[1642612743819,6.14765,3135.7,3135.2,0.00511581]
[1642612744214,5.35006,3135.7,3135.2,0.00511581]
[1642612744815,1.11803882,3135.3,3135.2,0.00511581]
[1642612745613,1.11803882,3135.3,3135.0,0.00625265]
[1642612746019,1.11803882,3135.3,3135.0,0.80385265]
[1642612746316,4.5525,3135.7,3135.1,0.00568423]
[1642612747116,0.79752,3135.6,3135.1,0.00568423]
[1642612747320,1.17214495,3135.2,3135.1,0.00568423]
[1642612747744,1.17214495,3135.2,3135.1,0.30568423]
[1642612748744,0.79759,3135.4,3135.1,0.30568423]
[1642612748945,0.79759,3135.4,3135.2,0.79754]
[1642612749144,0.79759,3135.4,3135.2,0.80265581]
[1642612749347,0.79759,3135.4,3135.3,0.30454738]
[1642612750348,0.79759,3135.4,3135.3,0.00454738]
[1642612750549,0.90504,3135.4,3135.3,0.00454738]
[1642612750748,1.03254,3135.4,3135.0,0.00625265]
[1642612750948,1.03254,3135.4,3134.7,0.00795792]
[1642612750949,0.9252641,3135.3,3134.7,0.00795792]
[1642612751431,0.9252641,3135.3,3134.4,0.79779]
[1642612751432,1.24610652,3134.8,3134.5,0.00909477]
[1642612751608,0.1275,3134.7,3134.5,0.00909477]
[1642612751812,1.24610652,3134.8,3134.5,0.00909477]
[1642612752613,0.1275,3135.1,3134.5,0.00909477]
[1642612752815,1.59555,3135.2,3134.5,0.00909477]
[1642612753112,0.1275,3135.1,3134.5,0.00909477]
[1642612753311,0.10745,3135.1,3134.5,0.00909477]
[1642612753511,1.72305,3135.2,3134.5,0.00909477]
[1642612753717,1.51688584,3135.0,3134.5,0.00909477]
[1642612755960,0.1275,3134.9,3134.5,0.00909477]
[1642612756158,7.66471053,3134.9,3134.5,0.00909477]
[1642612756360,0.12085627,3134.8,3133.9,0.01250531]
[1642612756563,0.12085627,3134.8,3133.8,0.01307373]
[1642612756564,0.79793,3134.6,3133.8,0.01307373]
[1642612756761,1.45805421,3134.0,3133.7,0.01364216]
[1642612756961,1.59583,3134.4,3133.7,0.01364216]
[1642612757161,1.59583,3134.4,3133.8,0.79792]
[1642612757464,1.59583,3134.4,3133.9,0.01250531]